fUSD/lending_fUSD_20250123
["ID","MTS","AMOUNT","RATE_DAILY","PERIOD"]
[350097093,1737624647034,-683.06,0.00017534,2]
[350097095,1737624647043,-519.87,0.00017534,2]
[350097097,1737624647052,-1143.28,0.00017534,2]
[350097099,1737624647062,-591.96,0.00017534,2]
[350097101,1737624647071,-500.0,0.00017534,2]
[350097103,1737624647080,-500.0,0.00017534,2]
[350097105,1737624647090,-605.74,0.00017534,2]
[350097107,1737624647099,-1558.9,0.00017534,2]
[350097109,1737624647109,-500.0,0.00017534,2]
[350097111,1737624647118,-500.0,0.00017534,2]
[350097113,1737624647128,-1054.42,0.00017534,2]
[350097115,1737624647137,-693.75,0.00017534,2]
[350097117,1737624647147,-1409.53,0.00017534,2]
[350097119,1737624647156,-682.67,0.00017534,2]
[350097121,1737624647165,-10168.2,0.00017543,2]
[350097123,1737624647175,-500.0,0.00017557,2]
[350097124,1737624647184,-500.0,0.00017557,2]
[350097125,1737624647193,-600.94,0.00017557,2]
[350097126,1737624647203,-500.0,0.00017557,2]
[350097127,1737624647212,-500.0,0.00017557,2]
[350097128,1737624647221,-500.0,0.00017557,2]
[350097129,1737624647230,-500.0,0.00017557,2]
[350097130,1737624647240,-500.0,0.00017557,2]
[350097131,1737624647249,-500.0,0.00017557,2]
[350097132,1737624647258,-500.0,0.00017557,2]
[350097133,1737624647267,-446.85524106,0.00017557,2]
[350097134,1737624647276,-500.0,0.00017557,2]
[350097135,1737624647286,-500.0,0.00017557,2]
[350097136,1737624647295,-422.728235,0.00017557,2]
[350097137,1737624647305,-500.0,0.00017557,2]
[350097138,1737624647314,-500.0,0.00017557,2]
[350097139,1737624647323,-384.875128,0.00017557,2]
[350097140,1737624647332,-500.0,0.00017557,2]
[350097141,1737624647342,-500.0,0.00017557,2]
[350097142,1737624647351,-500.0,0.00017557,2]
[350097143,1737624647361,-500.0,0.00017557,2]
[350097144,1737624647371,-500.0,0.00017557,2]
[350097145,1737624647380,-500.0,0.00017557,2]
[350097146,1737624647389,-539.06,0.00017557,2]
[350097147,1737624647399,-271.67409,0.00017557,2]
[350097148,1737624647409,-500.0,0.00017557,2]
[350097149,1737624647419,-500.0,0.00017557,2]
[350097150,1737624647428,-500.0,0.00017557,2]
[350097151,1737624647438,-500.0,0.00017557,2]
[350097152,1737624647448,-500.0,0.00017557,2]
[350097153,1737624647458,-500.0,0.00017557,2]
[350097154,1737624647467,-500.0,0.00017557,2]
[350097155,1737624647477,-500.0,0.00017557,2]
[350097156,1737624647487,-500.0,0.00017557,2]
[350097157,1737624647496,-742.19,0.00017557,2]
[350097158,1737624647508,-500.0,0.00017557,2]
[350097159,1737624647517,-500.0,0.00017557,2]
[350097160,1737624647527,-1105.57,0.00017557,2]
[350097161,1737624647536,-845.55,0.00017557,2]
[350097162,1737624647545,-500.0,0.00017557,2]
[350097163,1737624647555,-1151.53,0.00017557,2]
[350097164,1737624647564,-527.76,0.00017557,2]
[350097165,1737624647574,-151.0,0.00017557,2]
[350097166,1737624647583,-500.0,0.00017557,2]
[350097167,1737624647593,-500.0,0.00017557,2]
[350097168,1737624647603,-903.96,0.00017557,2]
[350097169,1737624647613,-500.0,0.00017557,2]
[350097170,1737624647623,-500.0,0.00017557,2]
[350097171,1737624647632,-500.0,0.00017557,2]
[350097172,1737624647642,-1690.38,0.00017557,2]
[350097173,1737624647651,-980.2,0.00017557,2]
[350097174,1737624647661,-942.63,0.00017557,2]
[350097175,1737624647670,-500.0,0.00017557,2]
[350097176,1737624647679,-703.16,0.00017557,2]
[350097177,1737624647689,-500.0,0.00017557,2]
[350097178,1737624647700,-1722.32,0.00017557,2]
[350097179,1737624647709,-500.0,0.00017557,2]
[350097180,1737624647719,-500.0,0.00017557,2]
[350097181,1737624647730,-500.0,0.00017557,2]
[350097182,1737624647740,-1023.81,0.00017557,2]
[350097183,1737624647750,-500.0,0.00017557,2]
[350097184,1737624647759,-514.08,0.00017557,2]
[350097185,1737624647769,-662.57,0.00017557,2]
[350097186,1737624647778,-653.54,0.00017557,2]
[350097187,1737624647788,-709.64,0.00017557,2]
[350097188,1737624647798,-646.15,0.00017557,2]
[350097189,1737624647809,-500.0,0.00017557,2]
[350097190,1737624647820,-500.0,0.00017557,2]
[350097191,1737624647832,-1307.61,0.00017557,2]
[350097192,1737624647842,-1454.69,0.00017557,2]
[350097193,1737624647852,-1061.27,0.00017557,2]
[350097194,1737624647862,-1164.52,0.00017557,2]
[350097195,1737624647872,-500.0,0.00017557,2]
[350097196,1737624647881,-2551.33,0.00017557,2]
[350097197,1737624647893,-680.12,0.00017557,2]
[350097198,1737624647903,-500.0,0.00017557,2]
[350097199,1737624647912,-500.0,0.00017557,2]
[350097200,1737624647922,-1189.93,0.00017557,2]
[350097201,1737624647931,-500.0,0.00017557,2]
[350097202,1737624647941,-1734.13,0.00017557,2]
[350097203,1737624647951,-1398.52,0.00017557,2]
[350097204,1737624647961,-500.0,0.00017557,2]
[350097205,1737624647971,-865.19,0.00017557,2]
[350097206,1737624647981,-500.0,0.00017557,2]
[350097207,1737624647991,-4444.71,0.00017557,2]
[350097208,1737624648000,-539.62,0.00017557,2]
[350097209,1737624648011,-212.27422347,0.00017557,2]
[350097210,1737624648021,-681.37,0.00017557,2]
[350097211,1737624648031,-1124.34,0.00017557,2]
[350097212,1737624648041,-1532.83,0.00017557,2]
[350097213,1737624648051,-500.0,0.00017557,2]
[350097214,1737624648061,-500.0,0.00017557,2]
[350097215,1737624648071,-500.0,0.00017557,2]
[350097216,1737624648081,-151.0,0.00017557,2]
[350097217,1737624648091,-751.76,0.00017557,2]
[350097218,1737624648101,-500.0,0.00017557,2]
[350097219,1737624648119,-151.0,0.00017557,2]
[350097220,1737624648129,-500.0,0.00017557,2]
[350097221,1737624648138,-555.11,0.00017557,2]
[350097222,1737624648148,-541.15,0.00017557,2]
[350097223,1737624648158,-500.0,0.00017557,2]
[350097224,1737624648167,-567.49,0.00017557,2]
[350097225,1737624648177,-500.0,0.00017557,2]
[350097226,1737624648186,-239.468734,0.00017557,2]
[350097227,1737624648196,-780.24,0.00017557,2]
[350097228,1737624648206,-853.25,0.00017557,2]
[350097229,1737624648215,-500.0,0.00017557,2]
[350097230,1737624648225,-208.66920855,0.00017614,2]
[350097231,1737624648234,-2390.99807565,0.00017673,2]
[350097232,1737624648244,-500.0,0.00017707,2]
[350097233,1737624648253,-500.0,0.00017707,2]
[350097234,1737624648263,-151.0,0.00017707,2]
[350097235,1737624648272,-151.0,0.00017707,2]
[350097236,1737624648282,-356.000699,0.00017707,2]
[350097237,1737624648292,-151.0,0.00017707,2]
[350097238,1737624648301,-356.000699,0.00017707,2]
[350097239,1737624648311,-160.805358,0.00017707,2]
[350097240,1737624648320,-153.989218,0.00017707,2]
[350097241,1737624648330,-151.0,0.00017707,2]
[350097242,1737624648339,-151.0,0.00017707,2]
[350097243,1737624648349,-153.534509,0.00017707,2]
[350097244,1737624648359,-151.0,0.00017707,2]
[350097245,1737624648369,-151.636453,0.00017707,2]
[350097246,1737624648378,-364.97372311,0.00017707,2]
[350097247,1737624648387,-220.25649287,0.00017707,2]
[350097248,1737624648397,-921.92,0.00017707,2]
[350097249,1737624648407,-1549.81,0.00017707,2]
[350097250,1737624648416,-545.92,0.00017707,2]
[350097251,1737624648425,-500.0,0.00017707,2]
[350097252,1737624648435,-1156.24,0.00017707,2]
[350097253,1737624648445,-500.0,0.00017707,2]
[350097254,1737624648454,-672.96,0.00017707,2]
[350097255,1737624648464,-160.4686,0.00017707,2]
[350097256,1737624648473,-159.908397,0.00017707,2]
[350097257,1737624648484,-780.36,0.00017707,2]
[350097258,1737624648495,-700.23,0.00017707,2]
[350097259,1737624648507,-500.0,0.00017707,2]
[350097260,1737624648516,-1245.39,0.00017707,2]
[350097261,1737624648526,-177.785154,0.00017707,2]
[350097262,1737624648535,-1036.053678,0.00017707,2]
[350097263,1737624648546,-1036.053678,0.00017707,2]
[350097264,1737624648559,-1101.08,0.00017707,2]
[350097265,1737624648570,-213.709238,0.00017707,2]
[350097266,1737624648580,-182.3,0.00017722,2]
[350097267,1737624648591,-3435.93,0.000178,2]
[350097268,1737624648600,-151.0,0.00017808,2]
[350097269,1737624648613,-151.290825,0.00017808,2]
[350097270,1737624648622,-152.580123,0.00017808,2]
[350097271,1737624648632,-500.0,0.00017808,2]
[350097272,1737624648642,-500.0,0.00017808,2]
[350097273,1737624648652,-500.0,0.00017808,2]
[350097274,1737624648663,-237.582338,0.00017808,2]
[350097275,1737624648673,-500.0,0.00017808,2]
[350097276,1737624648683,-151.0,0.00017808,2]
[350097277,1737624648693,-500.0,0.00017808,2]
[350097278,1737624648703,-199.314792,0.00017808,2]
[350097279,1737624648713,-1029.1,0.00017808,2]
[350097280,1737624648723,-500.0,0.00017808,2]
[350097281,1737624648733,-614.36691295,0.00017808,2]
[350097282,1737624648743,-500.0,0.00017808,2]
[350097283,1737624648753,-500.0,0.00017808,2]
[350097284,1737624648762,-500.0,0.00017808,2]
[350097285,1737624648772,-543.77,0.00017808,2]
[350097286,1737624648917,-500.0,0.00017808,2]
[350097287,1737624648933,-515.98,0.00017808,2]
[350097288,1737624648943,-500.0,0.00017808,2]
[350097289,1737624648952,-500.0,0.00017808,2]
[350097290,1737624648961,-1057.05,0.00017808,2]
[350097291,1737624648971,-1049.75,0.00017808,2]
[350097292,1737624648980,-542.38,0.00017808,2]
[350097293,1737624648990,-500.0,0.00017808,2]
[350097294,1737624648999,-791.38,0.00017808,2]
[350097295,1737624649009,-500.0,0.00017808,2]
[350097296,1737624649018,-710.91,0.00017808,2]
[350097297,1737624649028,-500.0,0.00017808,2]
[350097298,1737624649037,-1192.2,0.00017808,2]
[350097299,1737624649046,-683.06,0.00017808,2]
[350097300,1737624649056,-519.87,0.00017808,2]
[350097301,1737624649065,-1143.28,0.00017808,2]
[350097302,1737624649075,-591.96,0.00017808,2]
[350097303,1737624649084,-500.0,0.00017808,2]
[350097304,1737624649093,-500.0,0.00017808,2]
[350097305,1737624649103,-605.74,0.00017808,2]
[350097306,1737624649115,-1558.9,0.00017808,2]
[350097307,1737624649125,-500.0,0.00017808,2]
[350097308,1737624649134,-500.0,0.00017808,2]
[350097309,1737624649144,-1054.42,0.00017808,2]
[350097310,1737624649154,-693.75,0.00017808,2]
[350097311,1737624649163,-1409.53,0.00017808,2]
[350097312,1737624649173,-682.67,0.00017808,2]
[350097313,1737624649182,-500.0,0.00017831,2]
[350097314,1737624649192,-500.0,0.00017831,2]
[350097315,1737624649201,-600.94,0.00017831,2]
[350097316,1737624649210,-500.0,0.00017831,2]
[350097317,1737624649220,-500.0,0.00017831,2]
[350097318,1737624649229,-500.0,0.00017831,2]
[350097319,1737624649239,-500.0,0.00017831,2]
[350097320,1737624649249,-500.0,0.00017831,2]
[350097321,1737624649258,-500.0,0.00017831,2]
[350097322,1737624649268,-500.0,0.00017831,2]
[350097323,1737624649277,-500.0,0.00017831,2]
[350097324,1737624649287,-500.0,0.00017831,2]
[350097325,1737624649296,-422.728235,0.00017831,2]
[350097326,1737624649306,-500.0,0.00017831,2]
[350097327,1737624649315,-500.0,0.00017831,2]
[350097328,1737624649324,-384.875128,0.00017831,2]
[350097329,1737624649334,-500.0,0.00017831,2]
[350097330,1737624649343,-500.0,0.00017831,2]
[350097331,1737624649352,-500.0,0.00017831,2]
[350097332,1737624649363,-500.0,0.00017831,2]
[350097333,1737624649372,-500.0,0.00017831,2]
[350097334,1737624649382,-500.0,0.00017831,2]
[350097335,1737624649391,-539.06,0.00017831,2]
[350097336,1737624649401,-500.0,0.00017831,2]
[350097337,1737624649414,-500.0,0.00017831,2]
[350097338,1737624649424,-500.0,0.00017831,2]
[350097339,1737624649433,-500.0,0.00017831,2]
[350097340,1737624649443,-500.0,0.00017831,2]
[350097341,1737624649452,-500.0,0.00017831,2]
[350097342,1737624649462,-229.83763611,0.00017831,2]
[350097343,1737624649472,-500.0,0.00017831,2]
[350097344,1737624649481,-500.0,0.00017831,2]
[350097345,1737624649491,-742.19,0.00017831,2]
[350097346,1737624649501,-500.0,0.00017831,2]
[350097347,1737624649514,-500.0,0.00017831,2]
[350097348,1737624649525,-1105.57,0.00017831,2]
[350097349,1737624649534,-845.55,0.00017831,2]
[350097350,1737624649544,-500.0,0.00017831,2]
[350097351,1737624649554,-1151.53,0.00017831,2]
[350097352,1737624649564,-527.76,0.00017831,2]
[350097353,1737624649574,-233.900568,0.00017831,2]
[350097354,1737624649583,-500.0,0.00017831,2]
[350097355,1737624649593,-500.0,0.00017831,2]
[350097356,1737624649604,-903.96,0.00017831,2]
[350097357,1737624649614,-500.0,0.00017831,2]
[350097358,1737624649624,-500.0,0.00017831,2]
[350097359,1737624649633,-1690.38,0.00017831,2]
[350097360,1737624649643,-980.2,0.00017831,2]
[350097361,1737624649652,-942.63,0.00017831,2]
[350097362,1737624649662,-500.0,0.00017831,2]
[350097363,1737624649672,-703.16,0.00017831,2]
[350097364,1737624649681,-500.0,0.00017831,2]
[350097365,1737624649691,-500.0,0.00017831,2]
[350097366,1737624649701,-500.0,0.00017831,2]
[350097367,1737624649711,-1023.81,0.00017831,2]
[350097368,1737624649722,-500.0,0.00017831,2]
[350097369,1737624649732,-500.0,0.00017831,2]
[350097370,1737624649742,-514.08,0.00017831,2]
[350097371,1737624649752,-662.57,0.00017831,2]
[350097372,1737624649761,-653.54,0.00017831,2]
[350097373,1737624649772,-709.64,0.00017831,2]
[350097374,1737624649783,-500.0,0.00017831,2]
[350097375,1737624649792,-646.15,0.00017831,2]
[350097376,1737624649802,-500.0,0.00017831,2]
[350097377,1737624649811,-1307.61,0.00017831,2]
[350097378,1737624649820,-1454.69,0.00017831,2]
[350097379,1737624649831,-1061.27,0.00017831,2]
[350097380,1737624649840,-1164.52,0.00017831,2]
[350097381,1737624649850,-226.96763071,0.00017831,2]
[350097382,1737624649860,-2551.33,0.00017831,2]
[350097383,1737624649870,-680.12,0.00017831,2]
[350097384,1737624649880,-500.0,0.00017831,2]
[350097385,1737624649889,-500.0,0.00017831,2]
[350097386,1737624649898,-1189.93,0.00017831,2]
[350097387,1737624649907,-500.0,0.00017831,2]
[350097388,1737624649917,-1734.13,0.00017831,2]
[350097389,1737624649927,-1398.52,0.00017831,2]
[350097390,1737624649936,-502.86367975,0.00017831,2]
[350097391,1737624649945,-865.19,0.00017831,2]
[350097392,1737624649955,-500.0,0.00017831,2]
[350097393,1737624649965,-4444.71,0.00017831,2]
[350097394,1737624649973,-539.62,0.00017831,2]
[350097395,1737624649982,-681.37,0.00017831,2]
[350097396,1737624649991,-1124.34,0.00017831,2]
[350097397,1737624650001,-1532.83,0.00017831,2]
[350097398,1737624650010,-500.0,0.00017831,2]
[350097399,1737624650020,-500.0,0.00017831,2]
[350097400,1737624650029,-500.0,0.00017831,2]
[350097401,1737624650039,-151.0,0.00017831,2]
[350097402,1737624650048,-500.0,0.00017831,2]
[350097403,1737624650057,-751.76,0.00017831,2]
[350097404,1737624650067,-151.0,0.00017831,2]
[350097405,1737624650077,-500.0,0.00017831,2]
[350097406,1737624650086,-555.11,0.00017831,2]
[350097407,1737624650095,-541.15,0.00017831,2]
[350097408,1737624650104,-314.48578747,0.00017831,2]
[350097409,1737624650116,-567.49,0.00017831,2]
[350097410,1737624650125,-500.0,0.00017831,2]
[350097411,1737624650134,-780.24,0.00017831,2]
[350097412,1737624650143,-853.25,0.00017831,2]
[350097413,1737624650152,-500.0,0.00017831,2]
[350097414,1737624650162,-298.1,0.0001789,2]
[350097415,1737624650171,-298.1,0.0001789,2]
[350097416,1737624650180,-298.1,0.0001789,2]
[350097417,1737624650189,-298.1,0.0001789,2]
[350097418,1737624650198,-2390.99807565,0.00017927,2]
[350097419,1737624650207,-154.91445777,0.00017981,2]
[350097420,1737624650218,-500.0,0.00017981,2]
[350097421,1737624650227,-921.92,0.00017981,2]
[350097422,1737624650236,-1549.81,0.00017981,2]
[350097423,1737624650245,-545.92,0.00017981,2]
[350097424,1737624650255,-500.0,0.00017981,2]
[350097425,1737624650264,-1156.24,0.00017981,2]
[350097426,1737624650273,-500.0,0.00017981,2]
[350097427,1737624650283,-672.96,0.00017981,2]
[350097428,1737624650292,-780.36,0.00017981,2]
[350097429,1737624650301,-700.23,0.00017981,2]
[350097430,1737624650311,-500.0,0.00017981,2]
[350097431,1737624650320,-1245.39,0.00017981,2]
[350097432,1737624650329,-1101.08,0.00017981,2]
[350097433,1737624650338,-465.22301073,0.00018,3]
[350097434,1737624650347,-208.66920855,0.00018043,2]
[350097435,1737624650356,-500.0,0.00018082,2]
[350097436,1737624650366,-500.0,0.00018082,2]
[350097437,1737624650376,-500.0,0.00018082,2]
[350097438,1737624650385,-500.0,0.00018082,2]
[350097439,1737624650395,-500.0,0.00018082,2]
[350097440,1737624650403,-1029.1,0.00018082,2]
[350097441,1737624650412,-500.0,0.00018082,2]
[350097442,1737624650422,-151.0,0.00018082,2]
[350097443,1737624650432,-356.000699,0.00018082,2]
[350097444,1737624650441,-356.000699,0.00018082,2]
[350097445,1737624650451,-500.0,0.00018082,2]
[350097446,1737624650461,-581.23,0.00018082,2]
[350097447,1737624650471,-500.0,0.00018082,2]
[350097448,1737624650480,-543.77,0.00018082,2]
[350097449,1737624650490,-151.0,0.00018082,2]
[350097450,1737624650499,-500.0,0.00018082,2]
[350097451,1737624650511,-515.98,0.00018082,2]
[350097452,1737624650520,-500.0,0.00018082,2]
[350097453,1737624650530,-500.0,0.00018082,2]
[350097454,1737624650540,-1057.05,0.00018082,2]
[350097455,1737624650549,-1049.75,0.00018082,2]
[350097456,1737624650560,-542.38,0.00018082,2]
[350097457,1737624650570,-500.0,0.00018082,2]
[350097458,1737624650579,-791.38,0.00018082,2]
[350097459,1737624650589,-1036.053678,0.00018082,2]
[350097460,1737624650600,-500.0,0.00018082,2]
[350097461,1737624650611,-1036.053678,0.00018082,2]
[350097462,1737624650624,-710.91,0.00018082,2]
[350097463,1737624650634,-500.0,0.00018082,2]
[350097464,1737624650644,-1192.2,0.00018082,2]
[350097465,1737624650654,-683.06,0.00018082,2]
[350097466,1737624650664,-519.87,0.00018082,2]
[350097467,1737624650675,-1143.28,0.00018082,2]
[350097468,1737624650685,-591.96,0.00018082,2]
[350097469,1737624650695,-500.0,0.00018082,2]
[350097470,1737624650706,-500.0,0.00018082,2]
[350097471,1737624650716,-605.74,0.00018082,2]
[350097472,1737624650725,-1558.9,0.00018082,2]
[350097473,1737624650735,-500.0,0.00018082,2]
[350097474,1737624650745,-500.0,0.00018082,2]
[350097475,1737624650754,-1054.42,0.00018082,2]
[350097476,1737624650764,-693.75,0.00018082,2]
[350097477,1737624650773,-1409.53,0.00018082,2]
[350097478,1737624650783,-682.67,0.00018082,2]
[350097479,1737624650792,-200.0,0.00018082,2]
[350097480,1737624650802,-500.0,0.00018105,2]
[350097481,1737624650811,-500.0,0.00018105,2]
[350097482,1737624650821,-600.94,0.00018105,2]
[350097483,1737624650830,-500.0,0.00018105,2]
[350097484,1737624650840,-500.0,0.00018105,2]
[350097485,1737624650850,-500.0,0.00018105,2]
[350097486,1737624650859,-500.0,0.00018105,2]
[350097487,1737624650872,-500.0,0.00018105,2]
[350097488,1737624650881,-500.0,0.00018105,2]
[350097489,1737624650890,-500.0,0.00018105,2]
[350097490,1737624650899,-500.0,0.00018105,2]
[350097491,1737624650908,-500.0,0.00018105,2]
[350097492,1737624650918,-422.728235,0.00018105,2]
[350097493,1737624650927,-500.0,0.00018105,2]
[350097494,1737624650937,-500.0,0.00018105,2]
[350097495,1737624650946,-384.875128,0.00018105,2]
[350097496,1737624650955,-500.0,0.00018105,2]
[350097497,1737624650964,-500.0,0.00018105,2]
[350097498,1737624650973,-500.0,0.00018105,2]
[350097499,1737624650982,-500.0,0.00018105,2]
[350097500,1737624650991,-500.0,0.00018105,2]
[350097501,1737624651001,-250.22375762,0.00018105,2]
[350097502,1737624651010,-539.06,0.00018105,2]
[350097503,1737624651019,-500.0,0.00018105,2]
[350097504,1737624651028,-500.0,0.00018105,2]
[350097505,1737624651037,-500.0,0.00018105,2]
[350097506,1737624651046,-500.0,0.00018105,2]
[350097507,1737624651055,-500.0,0.00018105,2]
[350097508,1737624651065,-500.0,0.00018105,2]
[350097509,1737624651074,-500.0,0.00018105,2]
[350097510,1737624651083,-500.0,0.00018105,2]
[350097511,1737624651092,-742.19,0.00018105,2]
[350097512,1737624651101,-500.0,0.00018105,2]
[350097513,1737624651113,-500.0,0.00018105,2]
[350097514,1737624651122,-1105.57,0.00018105,2]
[350097515,1737624651131,-845.55,0.00018105,2]
[350097516,1737624651139,-500.0,0.00018105,2]
[350097517,1737624651148,-1151.53,0.00018105,2]
[350097518,1737624651157,-527.76,0.00018105,2]
[350097519,1737624651167,-500.0,0.00018105,2]
[350097520,1737624651176,-500.0,0.00018105,2]
[350097521,1737624651186,-903.96,0.00018105,2]
[350097522,1737624651195,-500.0,0.00018105,2]
[350097523,1737624651205,-500.0,0.00018105,2]
[350097524,1737624651216,-1690.38,0.00018105,2]
[350097525,1737624651226,-980.2,0.00018105,2]
[350097526,1737624651235,-942.63,0.00018105,2]
[350097527,1737624651245,-500.0,0.00018105,2]
[350097528,1737624651255,-703.16,0.00018105,2]
[350097529,1737624651264,-554.65893026,0.00018105,2]
[350097530,1737624651274,-500.0,0.00018105,2]
[350097531,1737624651283,-500.0,0.00018105,2]
[350097532,1737624651292,-1023.81,0.00018105,2]
[350097533,1737624651302,-500.0,0.00018105,2]
[350097534,1737624651347,-500.0,0.00018105,2]
[350097535,1737624651357,-514.08,0.00018105,2]
[350097536,1737624651370,-662.57,0.00018105,2]
[350097537,1737624651379,-653.54,0.00018105,2]
[350097538,1737624651388,-709.64,0.00018105,2]
[350097539,1737624651397,-500.0,0.00018105,2]
[350097540,1737624651406,-646.15,0.00018105,2]
[350097541,1737624651415,-500.0,0.00018105,2]
[350097542,1737624651424,-1307.61,0.00018105,2]
[350097543,1737624651433,-1454.69,0.00018105,2]
[350097544,1737624651442,-1164.52,0.00018105,2]
[350097545,1737624651452,-1061.27,0.00018105,2]
[350097546,1737624651462,-2551.33,0.00018105,2]
[350097547,1737624651474,-680.12,0.00018105,2]
[350097548,1737624651484,-500.0,0.00018105,2]
[350097549,1737624651494,-500.0,0.00018105,2]
[350097550,1737624651505,-1189.93,0.00018105,2]
[350097551,1737624651517,-500.0,0.00018105,2]
[350097552,1737624651526,-1734.13,0.00018105,2]
[350097553,1737624651535,-1398.52,0.00018105,2]
[350097554,1737624651544,-865.19,0.00018105,2]
[350097555,1737624651554,-500.0,0.00018105,2]
[350097556,1737624651563,-4444.71,0.00018105,2]
[350097557,1737624651573,-539.62,0.00018105,2]
[350097558,1737624651583,-681.37,0.00018105,2]
[350097559,1737624651592,-1124.34,0.00018105,2]
[350097560,1737624651601,-1532.83,0.00018105,2]
[350097561,1737624651612,-500.0,0.00018105,2]
[350097562,1737624651621,-500.0,0.00018105,2]
[350097563,1737624651630,-612.5569108,0.00018105,2]
[350097564,1737624651639,-500.0,0.00018105,2]
[350097565,1737624651650,-751.76,0.00018105,2]
[350097566,1737624651660,-500.0,0.00018105,2]
[350097567,1737624651669,-555.11,0.00018105,2]
[350097568,1737624651678,-541.15,0.00018105,2]
[350097569,1737624651688,-567.49,0.00018105,2]
[350097570,1737624651697,-500.0,0.00018105,2]
[350097571,1737624651707,-780.24,0.00018105,2]
[350097572,1737624651716,-853.25,0.00018105,2]
[350097573,1737624651725,-500.0,0.00018105,2]
[350097574,1737624651734,-13251.30126201,0.00018181,2]
[350097575,1737624651743,-2390.99807565,0.00018182,2]
[350097576,1737624651752,-500.0,0.00018255,2]
[350097577,1737624651761,-151.0,0.00018255,2]
[350097578,1737624651770,-921.92,0.00018255,2]
[350097579,1737624651779,-1549.81,0.00018255,2]
[350097580,1737624651788,-545.92,0.00018255,2]
[350097581,1737624651798,-500.0,0.00018255,2]
[350097582,1737624651807,-1156.24,0.00018255,2]
[350097583,1737624651817,-500.0,0.00018255,2]
[350097584,1737624651826,-672.96,0.00018255,2]
[350097585,1737624651836,-780.36,0.00018255,2]
[350097586,1737624651845,-700.23,0.00018255,2]
[350097587,1737624651855,-500.0,0.00018255,2]
[350097588,1737624651867,-1245.39,0.00018255,2]
[350097589,1737624651877,-1101.08,0.00018255,2]
[350097590,1737624651886,-151.0,0.00018255,2]
[350097591,1737624651895,-151.0,0.00018255,2]
[350097592,1737624651905,-1045.00620063,0.00018256,2]
[350097593,1737624651914,-151.09,0.000183,2]
[350097594,1737624651923,-151.09,0.000183,2]
[350097595,1737624651931,-151.09,0.000183,2]
[350097596,1737624651941,-151.09,0.000183,2]
[350097597,1737624651950,-151.09,0.000183,2]
[350097598,1737624651959,-151.09,0.000183,2]
[350097599,1737624651968,-151.09,0.000183,2]
[350097600,1737624651976,-151.09,0.000183,2]
[350097601,1737624651986,-151.09,0.000183,2]
[350097602,1737624651995,-151.09,0.000183,2]
[350097603,1737624652004,-151.09,0.000183,2]
[350097604,1737624652013,-151.09,0.000183,2]
[350097605,1737624652022,-151.09,0.000183,2]
[350097606,1737624652031,-151.09,0.000183,2]
[350097607,1737624652040,-151.09,0.000183,2]